fUST/lending_fUST_20250426
["ID","MTS","AMOUNT","RATE_DAILY","PERIOD"]
[359024876,1745658640452,-500.0,0.00016473,2]
[359024877,1745658640462,-500.34808177,0.00016473,2]
[359024878,1745658640472,-500.0,0.00016473,2]
[359024879,1745658640482,-500.0,0.00016473,2]
[359024881,1745658640491,-502.4301705,0.00016473,2]
[359024882,1745658640502,-500.0,0.00016473,2]
[359024884,1745658640511,-500.0,0.00016473,2]
[359024885,1745658640521,-504.72762841,0.00016473,2]
[359024886,1745658640530,-458.51503257,0.00016473,2]
[359024887,1745658640540,-500.0,0.00016473,2]
[359024889,1745658640550,-504.62809216,0.00016473,2]
[359024891,1745658640560,-500.0,0.00016473,2]
[359024893,1745658640571,-500.0,0.00016473,2]
[359024894,1745658640580,-500.0,0.00016473,2]
[359024896,1745658640590,-500.64033707,0.00016473,2]
[359024898,1745658640599,-503.19284658,0.00016473,2]
[359024900,1745658640609,-501.35602217,0.00016473,2]
[359024902,1745658640618,-151.0,0.00016473,2]
[359024904,1745658640628,-151.0,0.00016473,2]
[359024906,1745658640639,-151.0,0.00016473,2]
[359024908,1745658640652,-151.0,0.00016473,2]
[359024910,1745658640662,-151.0,0.00016473,2]
[359024912,1745658640672,-252.805736,0.00016473,2]
[359024914,1745658640683,-2650.8,0.00016493,2]
[359024916,1745658640693,-2650.8,0.00016493,2]
[359024918,1745658640703,-2650.8,0.00016493,2]
[359024920,1745658640713,-2650.8,0.00016493,2]
[359024922,1745658640723,-2650.8,0.00016493,2]
[359024924,1745658640733,-2650.8,0.00016493,2]
[359024926,1745658640743,-2650.8,0.00016493,2]
[359024928,1745658640753,-2650.8,0.00016493,2]
[359024930,1745658640762,-2650.8,0.00016493,2]
[359024932,1745658640772,-2650.8,0.00016493,2]
[359024934,1745658640782,-2650.8,0.00016493,2]
[359024936,1745658640791,-2650.8,0.00016493,2]
[359024938,1745658640801,-2650.8,0.00016493,2]
[359024940,1745658640811,-2650.8,0.00016493,2]
[359024942,1745658640820,-2650.8,0.00016493,2]
[359024944,1745658640829,-2650.8,0.00016493,2]
[359024946,1745658640839,-2650.8,0.00016493,2]
[359024948,1745658640849,-2650.8,0.00016493,2]
[359024950,1745658640859,-769.3156577,0.00016493,2]
[359024962,1745658640973,-1881.4843423,0.00016493,2]
[359024964,1745658640983,-1638.31255126,0.00016493,2]
[359024980,1745658641136,-597.95323649,0.00016438,2]
[359025184,1745658643292,-3836.23676351,0.00016438,2]
[359025186,1745658643303,-500.0,0.00016438,2]
[359025188,1745658643313,-1012.48744874,0.00016493,2]
[359025190,1745658643323,-2650.8,0.00016493,2]
[359025192,1745658643332,-2650.8,0.00016493,2]
[359025194,1745658643341,-2650.8,0.00016493,2]
[359025196,1745658643351,-2650.8,0.00016493,2]
[359025199,1745658643362,-151.0,0.00016493,2]
[359025201,1745658643371,-151.0,0.00016493,2]
[359025203,1745658643381,-151.0,0.00016493,2]
[359025205,1745658643392,-151.0,0.00016493,2]
[359025207,1745658643402,-151.0,0.00016493,2]
[359025208,1745658643412,-151.0,0.00016493,2]
[359025210,1745658643421,-151.0,0.00016493,2]
[359025212,1745658643432,-151.0,0.00016493,2]
[359025214,1745658643441,-151.0,0.00016493,2]
[359025216,1745658643451,-153.561588,0.00016493,2]
[359025218,1745658643461,-151.0,0.00016493,2]
[359025220,1745658643471,-151.0,0.00016493,2]
[359025222,1745658643481,-151.0,0.00016493,2]
[359025224,1745658643491,-200.0,0.000165,17]
[359025226,1745658643502,-1000.0,0.000165,2]
[359025228,1745658643512,-349.6676322,0.000165,2]
[359025230,1745658643522,-353.7254255,0.000165,2]
[359025232,1745658643531,-361.6458294,0.000165,2]
[359025234,1745658643541,-153.0,0.000165,2]
[359025236,1745658643551,-566.8670154,0.000165,2]
[359025238,1745658643560,-153.0,0.000165,2]
[359025240,1745658643570,-361.6458294,0.000165,2]
[359025242,1745658643580,-566.8670154,0.000165,2]
[359025244,1745658643590,-153.0,0.000165,2]
[359025245,1745658643599,-361.6458294,0.000165,2]
[359025247,1745658643611,-566.8670154,0.000165,2]
[359025249,1745658643621,-151.0,0.000165,2]
[359025251,1745658643631,-566.8670154,0.000165,2]
[359025253,1745658643642,-361.6458294,0.000165,2]
[359025255,1745658643652,-755.2055564,0.000165,2]
[359025257,1745658643671,-361.6458294,0.000165,2]
[359025259,1745658643690,-151.0,0.00016571,2]
[359025261,1745658643701,-2200.0,0.00016571,2]
[359025263,1745658643711,-355.18490943,0.0001658,2]
[359025265,1745658643722,-153.0,0.000166,2]
[359025267,1745658643732,-151.0,0.00016685,2]
[359025268,1745658643743,-208.778684,0.00016685,2]
[359025270,1745658643752,-151.0,0.00016685,2]
[359025272,1745658643764,-12499.18761285,0.00016685,2]
[359025274,1745658643773,-360.460819,0.000167,2]
[359025276,1745658643784,-154.2938119,0.000167,2]
[359025278,1745658643794,-249.80044934,0.00016702,2]
[359025280,1745658643804,-500.0,0.00016711,2]
[359025282,1745658643814,-406.8437366,0.00016711,2]
[359025284,1745658643823,-500.0,0.00016711,2]
[359025286,1745658643833,-899.33,0.00016712,2]
[359025288,1745658643843,-151.0,0.00016712,2]
[359025290,1745658643852,-151.0,0.00016712,2]
[359025292,1745658643863,-500.0,0.00016712,2]
[359025294,1745658643872,-500.0,0.00016712,2]
[359025296,1745658643882,-500.0,0.00016712,2]
[359025298,1745658643892,-529.76109559,0.00016712,2]
[359025300,1745658643901,-500.0,0.00016712,2]
[359025302,1745658643911,-500.0,0.00016712,2]
[359025304,1745658643922,-151.0,0.00016712,2]
[359025306,1745658643932,-151.0,0.00016712,2]
[359025308,1745658643943,-151.0,0.00016712,2]
[359025310,1745658643953,-151.0,0.00016712,2]
[359025312,1745658643963,-500.0,0.00016712,2]
[359025314,1745658643973,-500.0,0.00016712,2]
[359025316,1745658643983,-440.99069605,0.00016712,2]
[359025318,1745658643994,-500.0,0.00016712,2]
[359025320,1745658644005,-500.0,0.00016712,2]
[359025322,1745658644014,-289.39990449,0.00016712,2]
[359025324,1745658644024,-508.91065576,0.00016712,2]
[359025326,1745658644034,-188.80295538,0.00016712,2]
[359025328,1745658644045,-500.0,0.00016712,2]
[359025329,1745658644055,-507.54813478,0.00016712,2]
[359025331,1745658644065,-500.0,0.00016712,2]
[359025333,1745658644075,-504.19351972,0.00016712,2]
[359025335,1745658644085,-500.0,0.00016712,2]
[359025337,1745658644096,-500.0,0.00016712,2]
[359025338,1745658644107,-500.0,0.00016712,2]
[359025339,1745658644117,-500.0,0.00016712,2]
[359025340,1745658644127,-500.0,0.00016712,2]
[359025341,1745658644137,-500.0,0.00016712,2]
[359025342,1745658644149,-500.0,0.00016712,2]
[359025343,1745658644159,-500.0,0.00016712,2]
[359025344,1745658644169,-324.93995595,0.00016712,2]
[359025345,1745658644179,-500.0,0.00016712,2]
[359025346,1745658644188,-500.0,0.00016712,2]
[359025347,1745658644198,-500.0,0.00016712,2]
[359025348,1745658644207,-500.0,0.00016712,2]
[359025349,1745658644217,-510.17859742,0.00016712,2]
[359025350,1745658644227,-500.0,0.00016712,2]
[359025351,1745658644237,-500.0,0.00016712,2]
[359025352,1745658644247,-509.64192675,0.00016712,2]
[359025353,1745658644258,-500.0,0.00016712,2]
[359025354,1745658644267,-500.0,0.00016712,2]
[359025355,1745658644278,-500.0,0.00016712,2]
[359025356,1745658644288,-165.64385757,0.00016712,2]
[359025357,1745658644297,-500.0,0.00016712,2]
[359025358,1745658644307,-500.0,0.00016712,2]
[359025359,1745658644316,-327.65525476,0.00016712,2]
[359025360,1745658644327,-500.0,0.00016712,2]
[359025361,1745658644337,-500.0,0.00016712,2]
[359025362,1745658644347,-500.0,0.00016712,2]
[359025363,1745658644357,-500.0,0.00016712,2]
[359025365,1745658644367,-500.0,0.00016712,2]
[359025367,1745658644377,-500.0,0.00016712,2]
[359025369,1745658644387,-500.0,0.00016712,2]
[359025371,1745658644396,-533.83383081,0.00016712,2]
[359025373,1745658644406,-447.29447063,0.00016712,2]
[359025375,1745658644416,-500.0,0.00016712,2]
[359025376,1745658644425,-500.0,0.00016712,2]
[359025379,1745658644436,-500.0,0.00016712,2]
[359025381,1745658644446,-500.0,0.00016712,2]
[359025383,1745658644455,-500.0,0.00016712,2]
[359025385,1745658644465,-500.0,0.00016712,2]
[359025386,1745658644475,-500.0,0.00016712,2]
[359025388,1745658644485,-500.0,0.00016712,2]
[359025390,1745658644495,-567.29,0.00016712,2]
[359025392,1745658644504,-500.0,0.00016712,2]
[359025394,1745658644514,-500.0,0.00016712,2]
[359025396,1745658644524,-500.0,0.00016712,2]
[359025398,1745658644537,-500.0,0.00016712,2]
[359025400,1745658644548,-1454.22,0.00016712,2]
[359025402,1745658644558,-615.76,0.00016712,2]
[359025404,1745658644567,-500.0,0.00016712,2]
[359025406,1745658644577,-500.0,0.00016712,2]
[359025408,1745658644587,-253.23724397,0.00016712,2]
[359025410,1745658644597,-506.8906821,0.00016712,2]
[359025412,1745658644607,-500.0,0.00016712,2]
[359025414,1745658644618,-516.25748563,0.00016712,2]
[359025416,1745658644628,-500.0,0.00016712,2]
[359025418,1745658644637,-500.0,0.00016712,2]
[359025420,1745658644647,-500.0,0.00016712,2]
[359025422,1745658644662,-500.0,0.00016712,2]
[359025424,1745658644671,-500.0,0.00016712,2]
[359025426,1745658644681,-369.62873421,0.00016712,2]
[359025443,1745658644847,-500.0,0.00016712,2]
[359025445,1745658644858,-500.0,0.00016712,2]
[359025447,1745658644868,-510.07936563,0.00016712,2]
[359025449,1745658644878,-500.0,0.00016712,2]
[359025451,1745658644888,-569.47141385,0.00016712,2]
[359025453,1745658644899,-500.0,0.00016712,2]
[359025455,1745658644909,-252.90218327,0.00016712,2]
[359025457,1745658644918,-500.0,0.00016712,2]
[359025459,1745658644928,-500.0,0.00016712,2]
[359025461,1745658644938,-500.0,0.00016712,2]
[359025463,1745658644947,-500.0,0.00016712,2]
[359025465,1745658644957,-500.0,0.00016712,2]
[359025467,1745658644966,-605.53114649,0.00016712,2]
[359025468,1745658644976,-151.0,0.00016712,2]
[359025471,1745658644986,-151.0,0.00016712,2]
[359025472,1745658644996,-151.0,0.00016712,2]
[359025475,1745658645006,-151.0,0.00016712,2]
[359025476,1745658645017,-178.89664989,0.00016712,2]
[359025478,1745658645026,-1061.11,0.00016712,2]
[359025480,1745658645036,-506.33189778,0.00016712,2]
[359025482,1745658645046,-500.0,0.00016712,2]
[359025485,1745658645058,-500.0,0.00016712,2]
[359025486,1745658645067,-549.2659137,0.00016712,2]
[359025489,1745658645077,-1274.42,0.00016712,2]
[359025490,1745658645087,-500.0,0.00016712,2]
[359025492,1745658645097,-500.0,0.00016712,2]
[359025494,1745658645109,-500.0,0.00016712,2]
[359025496,1745658645118,-629.97,0.00016712,2]
[359025498,1745658645128,-500.0,0.00016712,2]
[359025500,1745658645139,-500.0,0.00016712,2]
[359025502,1745658645148,-500.0,0.00016712,2]
[359025504,1745658645158,-500.0,0.00016712,2]
[359025506,1745658645167,-500.0,0.00016712,2]
[359025508,1745658645178,-500.0,0.00016712,2]
[359025510,1745658645187,-500.0,0.00016712,2]
[359025512,1745658645197,-500.0,0.00016712,2]
[359025514,1745658645207,-753.71,0.00016712,2]
[359025516,1745658645218,-500.0,0.00016712,2]
[359025518,1745658645228,-500.0,0.00016712,2]
[359025520,1745658645237,-589.04,0.00016712,2]
[359025522,1745658645248,-500.0,0.00016712,2]
[359025524,1745658645258,-500.0,0.00016712,2]
[359025526,1745658645269,-500.0,0.00016712,2]
[359025528,1745658645279,-500.0,0.00016712,2]
[359025530,1745658645289,-500.0,0.00016712,2]
[359025532,1745658645299,-500.0,0.00016712,2]
[359025534,1745658645310,-500.0,0.00016712,2]
[359025536,1745658645320,-511.49443168,0.00016712,2]
[359025539,1745658645331,-1175.24,0.00016712,2]
[359025541,1745658645342,-500.0,0.00016712,2]
[359025542,1745658645352,-500.0,0.00016712,2]
[359025544,1745658645363,-4727.73,0.00016712,2]
[359025546,1745658645373,-500.0,0.00016712,2]
[359025548,1745658645383,-500.0,0.00016712,2]
[359025550,1745658645393,-500.0,0.00016712,2]
[359025552,1745658645403,-504.70275605,0.00016712,2]
[359025554,1745658645412,-523.75153324,0.00016712,2]
[359025556,1745658645422,-1747.67,0.00016712,2]
[359025558,1745658645431,-500.0,0.00016712,2]
[359025560,1745658645441,-506.05646831,0.00016712,2]
[359025562,1745658645451,-500.0,0.00016712,2]
[359025564,1745658645462,-328.45,0.00016712,2]
[359025566,1745658645471,-506.84076531,0.00016712,2]
[359025568,1745658645481,-500.0,0.00016712,2]
[359025570,1745658645491,-500.0,0.00016712,2]
[359025572,1745658645501,-500.0,0.00016712,2]
[359025574,1745658645510,-633.42294168,0.00016712,2]
[359025576,1745658645521,-1193.01,0.00016712,2]
[359025578,1745658645530,-509.76963627,0.00016712,2]
[359025580,1745658645540,-500.0,0.00016712,2]
[359025582,1745658645551,-500.0,0.00016712,2]
[359025584,1745658645561,-503.18200518,0.00016712,2]
[359025586,1745658645571,-500.0,0.00016712,2]
[359025588,1745658645581,-500.0,0.00016712,2]
[359025589,1745658645590,-500.0,0.00016712,2]
[359025591,1745658645600,-1173.25,0.00016712,2]
[359025593,1745658645611,-406.06480582,0.00016712,2]
[359025595,1745658645621,-500.0,0.00016712,2]
[359025596,1745658645631,-500.0,0.00016712,2]
[359025598,1745658645641,-500.0,0.00016712,2]
[359025600,1745658645653,-500.0,0.00016712,2]
[359025602,1745658645664,-500.0,0.00016712,2]
[359025604,1745658645674,-313.0752116,0.00016712,2]
[359025607,1745658645684,-1051.52,0.00016712,2]
[359025610,1745658645695,-500.0,0.00016712,2]
[359025613,1745658645704,-500.0,0.00016712,2]
[359025615,1745658645714,-504.63101527,0.00016712,2]
[359025618,1745658645738,-500.0,0.00016712,2]
[359025620,1745658645748,-500.0,0.00016712,2]
[359025622,1745658645758,-363.70288168,0.00016712,2]
[359025624,1745658645768,-500.0,0.00016712,2]
[359025626,1745658645777,-500.0,0.00016712,2]
[359025628,1745658645787,-500.0,0.00016712,2]
[359025630,1745658645796,-500.0,0.00016712,2]
[359025632,1745658645805,-500.0,0.00016712,2]
[359025634,1745658645815,-500.0,0.00016712,2]
[359025636,1745658645825,-151.0,0.00016712,2]
[359025638,1745658645834,-151.0,0.00016712,2]
[359025639,1745658645843,-500.0,0.00016712,2]
[359025641,1745658645853,-151.0,0.00016712,2]
[359025643,1745658645864,-297.901126,0.00016712,2]
[359025645,1745658645873,-500.0,0.00016712,2]
[359025647,1745658645883,-500.0,0.00016712,2]
[359025649,1745658645894,-500.0,0.00016712,2]
[359025651,1745658645904,-500.0,0.00016712,2]
[359025653,1745658645913,-500.0,0.00016712,2]
[359025655,1745658645923,-500.0,0.00016712,2]
[359025657,1745658645933,-379.45728206,0.00016712,2]
[359025659,1745658645942,-500.0,0.00016712,2]
[359025661,1745658645951,-500.0,0.00016712,2]
[359025663,1745658645961,-500.0,0.00016712,2]
[359025665,1745658645971,-151.0,0.00016712,2]
[359025666,1745658645980,-500.0,0.00016712,2]
[359025668,1745658645989,-500.82,0.00016712,2]
[359025670,1745658645999,-500.0,0.00016712,2]
[359025672,1745658646008,-500.0,0.00016712,2]
[359025674,1745658646019,-500.0,0.00016712,2]
[359025676,1745658646028,-171.789233,0.00016712,2]
[359025678,1745658646038,-2714.29,0.00016712,2]
[359025679,1745658646048,-500.0,0.00016712,2]
[359025681,1745658646058,-329.37574157,0.00016712,2]
[359025683,1745658646068,-500.0,0.00016712,2]
[359025685,1745658646079,-500.0,0.00016712,2]
[359025687,1745658646090,-500.0,0.00016712,2]
[359025689,1745658646099,-500.0,0.00016712,2]
[359025691,1745658646111,-500.0,0.00016712,2]
[359025693,1745658646121,-500.0,0.00016712,2]
[359025695,1745658646130,-500.0,0.00016712,2]
[359025697,1745658646141,-500.0,0.00016712,2]
[359025699,1745658646150,-548.24,0.00016712,2]
[359025701,1745658646161,-1568.72,0.00016712,2]
[359025703,1745658646170,-500.0,0.00016712,2]
[359025705,1745658646180,-503.56935402,0.00016712,2]
[359025707,1745658646189,-502.80911721,0.00016712,2]
[359025709,1745658646199,-1470.64,0.00016712,2]
[359025711,1745658646208,-500.0,0.00016712,2]
[359025713,1745658646219,-505.16233563,0.00016712,2]
[359025715,1745658646229,-1282.09,0.00016712,2]
[359025717,1745658646238,-500.0,0.00016712,2]
[359025718,1745658646247,-500.0,0.00016712,2]
[359025720,1745658646257,-504.66023825,0.00016712,2]
[359025722,1745658646266,-500.0,0.00016712,2]
[359025724,1745658646276,-512.44243575,0.00016712,2]
[359025726,1745658646285,-500.0,0.00016712,2]
[359025728,1745658646295,-676.29,0.00016712,2]
[359025730,1745658646304,-500.0,0.00016712,2]
[359025732,1745658646313,-500.0,0.00016712,2]
[359025733,1745658646323,-505.27022728,0.00016712,2]
[359025735,1745658646333,-1802.45,0.00016712,2]
[359025737,1745658646342,-503.33158578,0.00016712,2]
[359025739,1745658646352,-1254.95,0.00016712,2]
[359025741,1745658646362,-500.0,0.00016712,2]
[359025743,1745658646372,-1648.13,0.00016712,2]
[359025745,1745658646381,-500.0,0.00016712,2]
[359025748,1745658646390,-507.43537189,0.00016712,2]
[359025750,1745658646400,-500.0,0.00016712,2]
[359025752,1745658646409,-500.0,0.00016712,2]
[359025754,1745658646418,-460.45810998,0.00016712,2]
[359025755,1745658646428,-500.0,0.00016712,2]
[359025757,1745658646437,-500.0,0.00016712,2]
[359025759,1745658646447,-500.0,0.00016712,2]
[359025761,1745658646456,-723.39,0.00016712,2]
[359025762,1745658646465,-503.13958788,0.00016712,2]
[359025764,1745658646475,-1291.97,0.00016712,2]
[359025766,1745658646484,-500.0,0.00016712,2]
[359025768,1745658646494,-711.24,0.00016712,2]
[359025770,1745658646504,-500.0,0.00016712,2]
[359025772,1745658646513,-500.0,0.00016712,2]
[359025774,1745658646522,-500.0,0.00016712,2]
[359025775,1745658646531,-500.0,0.00016712,2]
[359025777,1745658646541,-500.0,0.00016712,2]
[359025779,1745658646550,-500.0,0.00016712,2]
[359025781,1745658646559,-500.0,0.00016712,2]
[359025783,1745658646570,-1955.81,0.00016712,2]
[359025785,1745658646579,-500.0,0.00016712,2]
[359025786,1745658646588,-500.0,0.00016712,2]
[359025788,1745658646597,-151.0,0.00016712,2]
[359025790,1745658646607,-151.0,0.00016712,2]
[359025792,1745658646616,-609.37400742,0.00016712,2]
[359025794,1745658646625,-507.48954667,0.00016712,2]
[359025796,1745658646635,-4434.19,0.00016712,2]
[359025798,1745658646644,-500.0,0.00016712,2]
[359025800,1745658646657,-263.02863325,0.00016737,2]
[359025801,1745658646667,-1133.7340308,0.000168,2]
[359025803,1745658646676,-361.6458294,0.000168,2]
[359025805,1745658646686,-151.0,0.000169,2]
[359025807,1745658646696,-151.0,0.000169,2]
[359025809,1745658646706,-151.0,0.000169,2]
[359025811,1745658646717,-2874.14020416,0.000169,2]
[359025812,1745658646726,-500.0,0.00016973,2]
[359025814,1745658646737,-500.0,0.00016973,2]
[359025816,1745658646746,-500.0,0.00016973,2]
[359025818,1745658646756,-500.0,0.00016973,2]
[359025820,1745658646765,-500.65908257,0.00016973,2]
[359025822,1745658646774,-500.52363217,0.00016973,2]
[359025824,1745658646783,-500.0,0.00016973,2]
[359025826,1745658646793,-500.0,0.00016973,2]
[359025827,1745658646803,-500.0,0.00016973,2]
[359025829,1745658646812,-303.53375458,0.00016973,2]
[359025831,1745658646822,-500.0,0.00016973,2]
[359025833,1745658646832,-500.0,0.00016973,2]
[359025835,1745658646841,-500.0,0.00016973,2]
[359025837,1745658646851,-500.0,0.00016973,2]
[359025839,1745658646862,-426.18155458,0.00016973,2]
[359025841,1745658646871,-500.0,0.00016973,2]
[359025843,1745658646881,-500.0,0.00016973,2]
[359025845,1745658646892,-500.0,0.00016973,2]
[359025847,1745658646902,-500.0,0.00016973,2]
[359025848,1745658646912,-500.72570635,0.00016973,2]
[359025850,1745658646922,-500.79914909,0.00016973,2]
[359025852,1745658646932,-500.0,0.00016973,2]
[359025854,1745658646942,-511.20887144,0.00016973,2]
[359025856,1745658646951,-500.0,0.00016973,2]
[359025858,1745658646960,-500.0,0.00016973,2]
[359025860,1745658646969,-500.0,0.00016973,2]
[359025862,1745658646979,-500.0,0.00016973,2]
[359025864,1745658646988,-500.0,0.00016973,2]
[359025865,1745658646998,-500.0,0.00016973,2]
[359025866,1745658647007,-500.0,0.00016973,2]
[359025867,1745658647018,-500.0,0.00016973,2]
[359025868,1745658647027,-500.0,0.00016973,2]
[359025869,1745658647036,-507.79295297,0.00016973,2]
[359025870,1745658647045,-500.0,0.00016973,2]
[359025871,1745658647055,-500.0,0.00016973,2]
[359025872,1745658647064,-500.0,0.00016973,2]
[359025873,1745658647073,-500.0,0.00016973,2]
[359025874,1745658647082,-500.0,0.00016973,2]
[359025875,1745658647091,-500.0,0.00016973,2]
[359025876,1745658647101,-436.95493272,0.00016973,2]
[359025877,1745658647110,-595.65493782,0.00016973,2]
[359025878,1745658647120,-500.0,0.00016973,2]
[359025879,1745658647130,-500.0,0.00016973,2]
[359025881,1745658647140,-500.0,0.00016973,2]
[359025882,1745658647149,-500.0,0.00016973,2]
[359025884,1745658647159,-165.57934102,0.00016973,2]
[359025886,1745658647168,-621.50869957,0.00016973,2]
[359025888,1745658647177,-500.0,0.00016973,2]
[359025890,1745658647188,-465.00078891,0.00016975,2]
[359025893,1745658647198,-1000.0,0.0001698,3]
[359025895,1745658647207,-1000.0,0.0001698,4]
[359025897,1745658647218,-500.0,0.00016985,2]
[359025899,1745658647227,-899.33,0.00016986,2]
[359025901,1745658647237,-205.0,0.00016986,2]
[359025903,1745658647246,-205.0,0.00016986,2]
[359025905,1745658647256,-205.0,0.00016986,2]
[359025907,1745658647265,-205.0,0.00016986,2]
[359025908,1745658647274,-205.0,0.00016986,2]
[359025910,1745658647284,-205.0,0.00016986,2]
[359025912,1745658647293,-205.0,0.00016986,2]
[359025915,1745658647304,-500.0,0.00016986,2]
[359025916,1745658647313,-500.0,0.00016986,2]
[359025918,1745658647323,-504.09398479,0.00016986,2]
[359025920,1745658647332,-579.54605281,0.00016986,2]
[359025922,1745658647342,-500.0,0.00016986,2]
[359025925,1745658647351,-500.0,0.00016986,2]
[359025927,1745658647362,-500.0,0.00016986,2]
[359025929,1745658647371,-500.0,0.00016986,2]
[359025930,1745658647381,-616.6,0.00016986,2]
[359025932,1745658647390,-500.0,0.00016986,2]
[359025934,1745658647400,-500.0,0.00016986,2]
[359025936,1745658647410,-500.0,0.00016986,2]
[359025938,1745658647419,-500.0,0.00016986,2]
[359025941,1745658647430,-500.0,0.00016986,2]
[359025943,1745658647440,-500.0,0.00016986,2]
[359025945,1745658647450,-500.0,0.00016986,2]
[359025947,1745658647460,-500.0,0.00016986,2]
[359025949,1745658647470,-500.0,0.00016986,2]
[359025950,1745658647479,-500.0,0.00016986,2]
[359025952,1745658647489,-507.0428493,0.00016986,2]
[359025954,1745658647499,-500.0,0.00016986,2]
[359025956,1745658647508,-500.0,0.00016986,2]
[359025959,1745658647519,-500.0,0.00016986,2]
[359025961,1745658647529,-500.0,0.00016986,2]
[359025962,1745658647539,-507.63005743,0.00016986,2]
[359025964,1745658647549,-500.0,0.00016986,2]
[359025966,1745658647559,-510.47654712,0.00016986,2]
[359025968,1745658647569,-500.0,0.00016986,2]
[359025969,1745658647579,-500.0,0.00016986,2]
[359025971,1745658647589,-500.0,0.00016986,2]
[359025973,1745658647599,-500.0,0.00016986,2]
[359025975,1745658647609,-500.0,0.00016986,2]
[359025977,1745658647619,-500.0,0.00016986,2]
[359025979,1745658647628,-500.0,0.00016986,2]
[359025981,1745658647638,-216.29073816,0.00016986,2]
[359025983,1745658647647,-500.0,0.00016986,2]
[359025985,1745658647660,-500.0,0.00016986,2]
[359025987,1745658647674,-521.13252777,0.00016986,2]
[359025989,1745658647684,-500.0,0.00016986,2]
[359025991,1745658647694,-500.0,0.00016986,2]
[359025993,1745658647705,-500.0,0.00016986,2]
[359025995,1745658647714,-500.0,0.00016986,2]
[359025996,1745658647727,-500.0,0.00016986,2]
[359025998,1745658647739,-507.67380663,0.00016986,2]
[359026000,1745658647748,-567.29,0.00016986,2]
[359026002,1745658647758,-500.0,0.00016986,2]
[359026004,1745658647768,-500.0,0.00016986,2]
[359026006,1745658647777,-500.0,0.00016986,2]
[359026008,1745658647786,-500.0,0.00016986,2]
[359026010,1745658647796,-1454.22,0.00016986,2]
[359026012,1745658647806,-615.76,0.00016986,2]
[359026014,1745658647815,-500.0,0.00016986,2]
[359026016,1745658647824,-296.88621815,0.00016986,2]
[359026018,1745658647834,-500.0,0.00016986,2]
[359026020,1745658647844,-500.0,0.00016986,2]
[359026022,1745658647853,-500.0,0.00016986,2]
[359026024,1745658647864,-500.0,0.00016986,2]
[359026026,1745658647873,-500.0,0.00016986,2]
[359026028,1745658647883,-500.0,0.00016986,2]
[359026030,1745658647892,-500.0,0.00016986,2]
[359026032,1745658647902,-500.0,0.00016986,2]
[359026034,1745658647911,-500.0,0.00016986,2]
[359026036,1745658647921,-527.33461903,0.00016986,2]
[359026038,1745658647930,-500.0,0.00016986,2]
[359026040,1745658647939,-500.0,0.00016986,2]
[359026042,1745658647949,-500.0,0.00016986,2]
[359026044,1745658647958,-500.0,0.00016986,2]
[359026046,1745658647967,-1061.11,0.00016986,2]
[359026047,1745658647977,-500.0,0.00016986,2]